bitfinex/quotes_BTCUSD_20250822
["timestamp","ask_amount","ask_price","bid_price","bid_amount"]
[1755849154259,0.43657034,113370.0,113360.0,0.15830206]
[1755849154456,0.43557023,113370.0,113360.0,0.15830206]
[1755849155198,0.09882351,113370.0,113360.0,0.15830206]
[1755849155393,0.43657034,113370.0,113360.0,0.15830206]
[1755849155595,0.43557023,113370.0,113360.0,0.15830206]
[1755849161297,0.09882351,113370.0,113360.0,0.15830206]
[1755849161501,0.43657034,113370.0,113360.0,0.15830206]
[1755849161849,0.43557023,113370.0,113360.0,0.15830206]
[1755849164122,0.23936464,113370.0,113360.0,0.15830206]
[1755849164325,0.41577815,113370.0,113360.0,0.15830206]
[1755849165487,0.51316023,113370.0,113360.0,0.15830206]
[1755849165717,0.51316023,113370.0,113360.0,0.18091627]
[1755849166125,0.51316023,113370.0,113360.0,0.26780102]
[1755849166294,0.17641351,113370.0,113360.0,0.26780102]
[1755849166501,0.51316023,113370.0,113360.0,0.24518681]
[1755849166864,0.51316023,113370.0,113360.0,0.09250681]
[1755849167060,0.51316023,113370.0,113360.0,0.24514681]
[1755849167571,0.51316023,113370.0,113360.0,0.09250681]
[1755849167746,0.51316023,113370.0,113360.0,0.09037681]
[1755849167908,0.51316023,113370.0,113360.0,0.23996681]
[1755849168122,0.57676153,113370.0,113360.0,0.23996681]
[1755849168315,0.57676153,113370.0,113360.0,0.08736681]
[1755849168738,0.91350825,113370.0,113360.0,0.15300206]
[1755849169919,0.24001481,113370.0,113360.0,0.15300206]
[1755849170137,0.84990695,113370.0,113360.0,0.15300206]
[1755849173578,0.84990695,113370.0,113360.0,0.15616206]
[1755849175260,0.84990695,113370.0,113360.0,0.00364206]
[1755849175481,0.84990695,113370.0,113360.0,0.15280206]
[1755849176145,0.84990695,113370.0,113360.0,0.15596206]
[1755849176853,0.88326274,113370.0,113360.0,0.00048206]
[1755849177099,0.88326274,113370.0,113360.0,0.15304206]
[1755849178191,1.22326274,113370.0,113360.0,0.00048206]
[1755849178409,1.22326274,113370.0,113360.0,0.15304206]
[1755849178631,1.18990695,113370.0,113360.0,0.15304206]
[1755849181024,1.18990695,113370.0,113360.0,0.00048206]
[1755849181226,1.18990695,113370.0,113360.0,0.15292206]
[1755849187784,1.18990695,113370.0,113360.0,1e-08]
[1755849187986,1.22326274,113370.0,113360.0,1e-08]
[1755849188332,1.18990695,113370.0,113360.0,0.15252001]
[1755849188531,1.18990695,113370.0,113360.0,1e-08]
[1755849188737,1.22326274,113370.0,113360.0,1e-08]
[1755849188888,1.22426274,113370.0,113360.0,1e-08]
[1755849189146,1.3905935,113370.0,113360.0,1e-08]
[1755849189354,1.3895935,113370.0,113360.0,1e-08]
[1755849189796,1.35723771,113370.0,113360.0,1e-08]
[1755849190641,1.3905935,113370.0,113360.0,1e-08]
[1755849190844,1.3905935,113370.0,113350.0,1e-08]
[1755849190845,0.17642907,113360.0,113350.0,1e-08]
[1755849191047,0.1764602,113340.0,113330.0,0.40537804]
[1755849191249,0.51320692,113340.0,113330.0,0.64695716]
[1755849191669,0.51320692,113340.0,113330.0,0.42667716]
[1755849191902,1.25892019,113340.0,113330.0,0.35623912]
[1755849192126,0.58757675,113340.0,113330.0,0.00054437]
[1755849192337,1.26107019,113340.0,113330.0,0.00265437]
[1755849192543,1.19210364,113340.0,113330.0,0.00054437]
[1755849192782,0.5186102,113340.0,113330.0,0.00054437]
[1755849193002,1.19210364,113340.0,113330.0,0.00354437]
[1755849193209,1.19451364,113340.0,113330.0,0.00154437]
[1755849193660,0.5186102,113340.0,113330.0,0.00154437]
[1755849193898,1.19210364,113340.0,113330.0,0.00054437]
[1755849194377,0.5186102,113340.0,113330.0,0.00054437]
[1755849194580,1.19210364,113340.0,113330.0,0.00054437]
[1755849194758,1.19451364,113340.0,113330.0,0.00054437]
[1755849195161,1.34494364,113340.0,113330.0,0.00054437]
[1755849195579,1.34735364,113340.0,113330.0,0.00054437]
[1755849195781,1.19451364,113340.0,113330.0,0.00054437]
[1755849195984,1.19210364,113340.0,113330.0,0.00054437]
[1755849196405,1.34490364,113340.0,113330.0,0.00054437]
[1755849197191,1.34731364,113340.0,113330.0,0.00054437]
[1755849198212,1.34490364,113340.0,113330.0,0.00054437]
[1755849198909,0.51647577,113330.0,113320.0,1e-08]
[1755849199120,1.34724921,113330.0,113320.0,1e-08]
[1755849199346,0.67375577,113330.0,113320.0,1e-08]
[1755849199629,0.68757181,113330.0,113320.0,1e-08]
[1755849200246,0.68610181,113330.0,113320.0,1e-08]
[1755849200458,0.68857181,113330.0,113320.0,1e-08]
[1755849200653,0.68757181,113330.0,113320.0,1e-08]
[1755849200999,0.68857181,113330.0,113320.0,1e-08]
[1755849202373,0.68610181,113330.0,113320.0,1e-08]
[1755849202786,0.68857181,113330.0,113320.0,1e-08]
[1755849203412,0.68610181,113330.0,113320.0,1e-08]
[1755849206851,0.67228577,113330.0,113320.0,1e-08]
[1755849210077,0.68610191,113330.0,113320.0,1e-08]
[1755849211524,0.68610191,113330.0,113320.0,0.00523001]
[1755849211733,0.68405191,113330.0,113320.0,0.00523001]
[1755849212538,1.02079863,113330.0,113320.0,0.00523001]
[1755849212762,1.02277863,113330.0,113320.0,0.00523001]
[1755849212965,1.02277863,113330.0,113320.0,1e-08]
[1755849214154,1.05416026,113330.0,113320.0,1e-08]
[1755849214779,0.71741354,113330.0,113320.0,0.25000001]
[1755849215002,0.56465354,113330.0,113320.0,0.25000001]
[1755849215202,1.05420026,113330.0,113320.0,0.25000001]
[1755849215773,0.71745354,113330.0,113320.0,0.25000001]
[1755849215970,1.05420026,113330.0,113320.0,0.25000001]
[1755849219013,0.90140026,113330.0,113320.0,0.25000001]
[1755849219222,1.05412026,113330.0,113320.0,0.25000001]
[1755849222124,1.05412026,113330.0,113320.0,0.25319001]
[1755849222325,1.02075863,113330.0,113320.0,0.25523001]
[1755849223102,0.86803863,113330.0,113320.0,0.25523001]
[1755849223325,1.02071863,113330.0,113320.0,0.25523001]
[1755849226276,1.0269246,113330.0,113320.0,0.25523001]
[1755849226653,1.02071863,113330.0,113320.0,0.25523001]
[1755849227271,1.0269257,113330.0,113320.0,0.25523001]
[1755849229506,1.02692691,113330.0,113320.0,0.25523001]
[1755849229706,1.04599904,113330.0,113320.0,0.25523001]
[1755849230067,0.53750019,113330.0,113320.0,0.25523001]
[1755849230253,1.02035863,113330.0,113320.0,0.25523001]
[1755849230997,1.02241863,113330.0,113320.0,0.25000001]
[1755849231198,1.02862724,113330.0,113320.0,0.25000001]
[1755849231435,1.39686184,113330.0,113320.0,0.25000001]
[1755849231806,1.41851476,113330.0,113320.0,1e-08]
[1755849231970,1.4185136,113330.0,113320.0,1e-08]
[1755849232774,0.77583717,113330.0,113320.0,1e-08]
[1755849232970,1.44933061,113330.0,113320.0,1e-08]
[1755849233178,0.17649135,113320.0,113310.0,0.0004]
[1755849233403,1.06663968,113320.0,113310.0,0.00054446]
[1755849234610,1.07021968,113320.0,113310.0,0.00054446]
[1755849234824,1.06763968,113320.0,113310.0,0.00054446]
[1755849236103,1.06863968,113320.0,113310.0,0.00054446]
[1755849236654,0.24278624,113320.0,113310.0,0.00054446]
[1755849236864,1.06843968,113320.0,113310.0,0.00054446]
[1755849237266,1.06843968,113320.0,113310.0,0.00568446]
[1755849238843,1.03762267,113320.0,113310.0,0.00568446]
[1755849241344,0.17849135,113320.0,113310.0,0.00568446]
[1755849241543,0.51523807,113320.0,113310.0,0.00568446]
[1755849243704,0.66803807,113320.0,113310.0,0.00568446]
[1755849244598,0.51523807,113320.0,113310.0,0.00568446]
[1755849249411,0.17849135,113320.0,113310.0,0.00568446]
[1755849249598,0.51523807,113320.0,113310.0,0.00568446]
[1755849253343,0.17849135,113320.0,113310.0,0.00568446]
[1755849253569,0.51523807,113320.0,113310.0,0.00568446]
[1755849253973,0.17849135,113320.0,113310.0,0.00568446]
[1755849254172,0.51523807,113320.0,113310.0,0.00568446]
[1755849255715,0.17849135,113320.0,113310.0,0.00568446]
[1755849256115,0.51523807,113320.0,113310.0,0.00568446]
[1755849256525,0.51849135,113320.0,113310.0,0.00568446]
[1755849257210,0.85523807,113320.0,113310.0,0.00568446]
[1755849259190,0.85423807,113320.0,113310.0,0.25568446]
[1755849259618,0.85323807,113320.0,113310.0,0.25568446]
[1755849260234,0.85323807,113320.0,113310.0,0.40792446]
[1755849260667,0.85323807,113320.0,113310.0,0.49480921]
[1755849260668,0.17649135,113320.0,113310.0,0.49480921]
[1755849260873,0.17649135,113320.0,113310.0,0.84900495]
[1755849261094,0.17649135,113320.0,113310.0,0.51225823]
[1755849261277,0.17649135,113320.0,113310.0,0.58013823]
[1755849262497,0.17649135,113320.0,113310.0,0.58113823]
[1755849263543,0.17649135,113320.0,113310.0,0.58213823]
[1755849263748,0.17649135,113320.0,113310.0,0.65800419]
[1755849264462,0.17649135,113320.0,113310.0,0.58213823]
[1755849270604,0.17649135,113320.0,113310.0,0.84883823]
[1755849273320,0.17649135,113320.0,113310.0,0.84855823]
[1755849276031,0.19029069,113330.0,113310.0,1.09511187]
[1755849276248,0.17647577,113330.0,113320.0,0.09205089]
[1755849276434,0.17647577,113330.0,113320.0,0.09405089]
[1755849278463,0.17647577,113330.0,113320.0,0.34405089]
[1755849278681,0.17647577,113330.0,113320.0,0.34184475]
[1755849278892,0.51322249,113330.0,113320.0,0.34184475]
[1755849279545,0.17647577,113330.0,113320.0,0.60954475]
[1755849279973,0.17647577,113330.0,113320.0,0.6964144]
[1755849280159,0.17647577,113330.0,113320.0,0.6974144]
[1755849282961,0.17647577,113330.0,113320.0,0.61054475]
[1755849286729,0.51322249,113330.0,113320.0,0.61054475]
[1755849287913,0.17647577,113330.0,113320.0,0.61054475]
[1755849294730,0.18528321,113340.0,113320.0,1.12378282]
[1755849294931,0.18528321,113340.0,113330.0,0.15392594]
[1755849295133,0.18528321,113340.0,113330.0,0.24582069]
[1755849295366,0.18528321,113340.0,113330.0,0.3304844]
[1755849295583,0.52578078,113350.0,113330.0,0.52440919]
[1755849295796,0.18578078,113350.0,113340.0,0.08992475]
[1755849296174,0.18528078,113350.0,113340.0,0.09189475]
[1755849296541,0.18528078,113350.0,113340.0,0.0941005]
[1755849296738,0.18826078,113350.0,113340.0,0.09189475]
[1755849297115,0.18726078,113350.0,113340.0,0.09189475]
[1755849297341,0.18826078,113350.0,113340.0,0.09189475]
[1755849297872,0.18926078,113350.0,113340.0,0.15977475]
[1755849298070,0.20307269,113350.0,113340.0,0.15673475]
[1755849298323,0.20207269,113350.0,113340.0,0.15673475]
[1755849298519,0.20207269,113350.0,113340.0,0.40673475]
[1755849298660,0.20207269,113350.0,113340.0,0.40977475]
[1755849299103,0.20107269,113350.0,113340.0,0.40977475]
[1755849300005,0.20107269,113350.0,113340.0,0.49509409]
[1755849300276,0.19909269,113350.0,113340.0,0.76179409]
[1755849302090,0.53583941,113350.0,113340.0,0.76179409]
[1755849303234,0.53583941,113350.0,113340.0,0.67647475]
[1755849304376,0.19909269,113350.0,113340.0,0.67647475]
[1755849304573,0.53583941,113350.0,113340.0,0.67647475]
[1755849305075,0.53798941,113350.0,113340.0,0.67647475]
[1755849306633,0.20124269,113350.0,113340.0,0.67647475]
[1755849306836,0.53798941,113350.0,113340.0,0.7633444]
[1755849308744,0.53798941,113350.0,113340.0,0.9154644]
[1755849309169,0.53798941,113350.0,113340.0,0.9104544]
[1755849309400,0.53798941,113350.0,113340.0,0.82358475]
[1755849310879,0.20124269,113350.0,113340.0,0.82859475]
[1755849311113,0.53798941,113350.0,113340.0,0.82358475]
[1755849312338,0.53798941,113350.0,113340.0,0.82662475]
[1755849312550,0.87536083,113350.0,113340.0,0.82859475]
[1755849313343,0.87536083,113350.0,113340.0,0.9154644]
[1755849313567,0.87536083,113350.0,113340.0,0.82859475]
[1755849313703,0.53615176,113350.0,113340.0,0.82859475]
[1755849314901,0.53615176,113350.0,113340.0,0.82959475]
[1755849315917,0.53615176,113350.0,113340.0,0.83059475]
[1755849318479,0.19909269,113350.0,113340.0,0.83059475]
[1755849318724,0.53615176,113350.0,113340.0,0.89814028]
[1755849319336,0.53615176,113350.0,113340.0,0.83059475]
[1755849321539,0.19909269,113350.0,113340.0,0.83059475]
[1755849321780,0.53615176,113350.0,113340.0,0.83059475]
[1755849323577,0.19909269,113350.0,113340.0,0.83059475]
[1755849323770,0.53615176,113350.0,113340.0,0.83059475]
[1755849324039,0.53615176,113350.0,113340.0,0.89211037]
[1755849324428,0.19909269,113350.0,113340.0,0.89211037]
[1755849324641,0.19909269,113350.0,113340.0,0.83059475]
[1755849324642,0.53615176,113350.0,113340.0,0.83059475]
[1755849326901,0.19909269,113350.0,113340.0,0.83059475]
[1755849327102,0.53615176,113350.0,113340.0,0.83059475]
[1755849328782,0.19909269,113350.0,113340.0,0.83059475]
[1755849328993,0.53615176,113350.0,113340.0,0.83059475]
[1755849329532,0.53616307,113350.0,113340.0,0.9174644]
[1755849331166,0.199104,113350.0,113340.0,0.9174644]
[1755849331370,0.53616307,113350.0,113340.0,0.9174644]
[1755849332195,0.53616307,113350.0,113340.0,0.6507644]
[1755849334214,0.53616307,113350.0,113340.0,0.56389475]
[1755849335278,0.53819307,113350.0,113340.0,0.56389475]
[1755849335480,0.87525214,113350.0,113340.0,0.56389475]
[1755849337311,0.53819307,113350.0,113340.0,0.56389475]
[1755849337917,0.199104,113350.0,113340.0,0.56389475]
[1755849338117,0.53616307,113350.0,113340.0,0.63613131]
[1755849340965,0.53616307,113350.0,113340.0,0.66266031]
[1755849341383,0.199104,113350.0,113340.0,0.66266031]
[1755849341588,0.53616307,113350.0,113340.0,0.92936031]
[1755849341881,0.53616307,113350.0,113340.0,0.85712375]
[1755849345643,0.87525214,113350.0,113340.0,0.85712375]
[1755849345845,0.53819307,113350.0,113340.0,0.85712375]
[1755849346616,0.201134,113350.0,113340.0,0.85712375]
[1755849346818,0.53819307,113350.0,113340.0,0.85712375]
[1755849347405,0.201134,113350.0,113340.0,0.85712375]
[1755849347613,0.53616307,113350.0,113340.0,0.85712375]
[1755849349982,0.53818307,113350.0,113340.0,0.88747077]
[1755849350503,0.201124,113350.0,113340.0,0.85712375]
[1755849350711,0.53818307,113350.0,113340.0,0.85712375]
[1755849351260,0.53818307,113350.0,113340.0,0.83059475]
[1755849352389,0.53616307,113350.0,113340.0,0.83059475]
[1755849352614,0.53818307,113350.0,113340.0,0.83059475]
[1755849352828,0.201124,113350.0,113340.0,0.83059475]
[1755849352992,0.53818307,113350.0,113340.0,0.87676605]
[1755849357909,0.53818307,113350.0,113340.0,0.87644605]
[1755849358353,0.87524214,113350.0,113340.0,0.90297505]
[1755849358618,0.53818307,113350.0,113340.0,0.90297505]
[1755849360289,0.199104,113350.0,113340.0,0.90297505]
[1755849360438,0.53616307,113350.0,113340.0,0.90297505]
[1755849360861,0.53818307,113350.0,113340.0,0.83509505]
[1755849361357,0.201124,113350.0,113340.0,0.78387375]
[1755849361558,0.87524214,113350.0,113340.0,0.78908375]
[1755849361964,0.199104,113350.0,113340.0,0.78908375]
[1755849362167,0.53616307,113350.0,113340.0,0.78908375]
[1755849364736,0.199104,113350.0,113340.0,0.80653277]
[1755849364950,0.52734084,113350.0,113340.0,0.89340242]
[1755849365153,0.01381191,113350.0,113340.0,1.40692169]
[1755849365570,0.51348814,113360.0,113350.0,0.01744902]
[1755849365771,0.51348814,113360.0,113350.0,0.53233487]
[1755849365984,0.51348814,113360.0,113350.0,0.52792377]
[1755849366187,0.51348814,113360.0,113350.0,0.55444877]
[1755849366713,0.51353632,113360.0,113350.0,0.55444877]
[1755849366911,0.17647725,113360.0,113350.0,0.55444877]
[1755849367144,0.51353632,113360.0,113350.0,0.56321583]
[1755849367730,0.51353632,113360.0,113350.0,0.81321583]
[1755849369198,0.17647725,113360.0,113350.0,0.81321583]
[1755849369339,0.51353632,113360.0,113350.0,0.81321583]
[1755849370322,0.51353632,113360.0,113350.0,0.80444877]
[1755849370727,0.51353632,113360.0,113350.0,0.80544877]
[1755849371229,0.51353632,113360.0,113350.0,0.80644877]
[1755849372518,0.17647725,113360.0,113350.0,0.80644877]
[1755849373134,0.51353632,113360.0,113350.0,0.80644877]
[1755849373429,0.51353632,113360.0,113350.0,0.84656179]
[1755849373575,0.51353632,113360.0,113350.0,0.84652179]
[1755849374364,0.17647725,113360.0,113350.0,0.84652179]
[1755849374569,0.51353632,113360.0,113350.0,0.84652179]
[1755849375233,0.17647725,113360.0,113350.0,0.91436179]
[1755849375653,0.51353632,113360.0,113350.0,0.91436179]
[1755849376364,0.17647725,113360.0,113350.0,0.91436179]
[1755849376570,0.51353632,113360.0,113350.0,0.91436179]
[1755849377691,0.17647725,113360.0,113350.0,0.91436179]
[1755849377829,0.51353632,113360.0,113350.0,0.91436179]
[1755849378724,0.17647725,113360.0,113350.0,0.87424877]
[1755849378920,0.51353632,113360.0,113350.0,0.87424877]
[1755849379310,0.17647725,113360.0,113350.0,0.87424877]
[1755849379497,0.51353632,113360.0,113350.0,0.87424877]
[1755849380863,0.17647725,113360.0,113350.0,0.87424877]
[1755849381103,0.51353632,113360.0,113350.0,0.87424877]
[1755849381307,0.51353632,113360.0,113350.0,0.9046994]
[1755849381507,0.17647725,113360.0,113350.0,0.9046994]
[1755849381689,0.51353632,113360.0,113350.0,0.9046994]
[1755849381887,0.17647725,113360.0,113350.0,1.08114404]
[1755849382035,0.51353632,113360.0,113350.0,1.08114404]
[1755849382238,0.51353632,113360.0,113350.0,0.9046994]
[1755849382851,0.51353632,113360.0,113350.0,0.87424877]
[1755849386204,0.51353632,113360.0,113350.0,1.05069341]
[1755849387142,0.51353632,113360.0,113350.0,0.87424877]
[1755849387997,0.17647725,113360.0,113350.0,1.05069341]
[1755849388204,0.51353632,113360.0,113350.0,1.05069341]
[1755849388414,0.51353632,113360.0,113350.0,0.95784328]
[1755849389193,0.33710725,113360.0,113350.0,1.13428792]
[1755849389735,0.15827725,113360.0,113350.0,1.13428792]
[1755849389930,0.33705907,113360.0,113350.0,1.13428792]
[1755849391626,0.18523418,113370.0,113350.0,1.13428792]
[1755849391819,0.18523418,113370.0,113360.0,0.23844475]
[1755849392033,0.52425325,113370.0,113360.0,0.24943918]
[1755849392449,0.52425325,113370.0,113360.0,0.27596318]
[1755849392600,0.52425325,113370.0,113360.0,0.52596318]
[1755849392782,0.52425325,113370.0,113360.0,0.52905318]
[1755849393243,0.52425325,113370.0,113360.0,0.51805875]
[1755849394167,0.52425325,113370.0,113360.0,0.51496875]
[1755849394291,0.18719418,113370.0,113360.0,0.51496875]
[1755849394494,0.52425325,113370.0,113360.0,0.51496875]
[1755849394992,0.52425325,113370.0,113360.0,0.78166875]
[1755849395195,0.18719418,113370.0,113360.0,0.78166875]
[1755849395940,0.18719418,113370.0,113360.0,0.78682875]
[1755849396349,0.18719418,113370.0,113360.0,0.85499054]
[1755849396984,0.18719418,113370.0,113360.0,0.78682875]
[1755849398344,0.18719418,113370.0,113360.0,0.82639404]
[1755849399345,0.18523418,113370.0,113360.0,0.82639404]
[1755849399698,0.18719418,113370.0,113360.0,0.82639404]
[1755849400519,0.18719418,113370.0,113360.0,0.82739404]
[1755849401980,0.18719418,113370.0,113360.0,0.82839404]
[1755849402335,0.22336026,113380.0,113360.0,1.39820005]
[1755849402542,0.56046753,113380.0,113370.0,0.15649516]
[1755849402795,0.56046753,113380.0,113370.0,0.24117475]
[1755849402796,0.56242753,113380.0,113370.0,0.24117475]
[1755849402972,0.56242753,113380.0,113370.0,0.26769675]
[1755849403194,0.56242753,113380.0,113370.0,0.26460675]
[1755849403848,0.56242753,113380.0,113370.0,0.51460675]
[1755849405238,0.22536846,113380.0,113370.0,0.51460675]
[1755849405465,0.56242753,113380.0,113370.0,0.51460675]
[1755849406361,0.22794846,113380.0,113370.0,0.51460675]
[1755849406640,0.56242753,113380.0,113370.0,0.78130675]
[1755849407091,0.22536846,113380.0,113370.0,0.78130675]
[1755849407335,0.56242753,113380.0,113370.0,0.78130675]
[1755849407574,0.22794846,113380.0,113370.0,0.78130675]
[1755849407804,0.9020666,113380.0,113370.0,0.78230675]
[1755849408040,0.93499466,113380.0,113370.0,0.78230675]
[1755849408268,0.22794846,113380.0,113370.0,0.78230675]
[1755849408719,0.56242753,113380.0,113370.0,0.78230675]
[1755849408941,0.8994866,113380.0,113370.0,0.78230675]
[1755849409376,0.8995266,113380.0,113370.0,0.78230675]
[1755849409619,0.22536846,113380.0,113370.0,0.80152335]
[1755849409836,0.56242753,113380.0,113370.0,0.80152335]
[1755849410048,0.8995266,113380.0,113370.0,0.75930475]
[1755849410354,0.9260506,113380.0,113370.0,0.75930475]
[1755849410962,0.9260506,113380.0,113370.0,0.5187]
[1755849411119,1.78995773,113380.0,113370.0,0.252]
[1755849411522,1.74942504,113380.0,113370.0,0.252]
[1755849411719,1.76323528,113380.0,113370.0,0.252]
[1755849411955,1.76323528,113380.0,113370.0,0.251]
[1755849412173,1.75702996,113380.0,113370.0,0.001]
[1755849412421,1.75802996,113380.0,113370.0,0.001]
[1755849412607,1.74802996,113380.0,113370.0,0.001]
[1755849412780,1.75684985,113380.0,113370.0,0.001]
[1755849412983,0.17641351,113370.0,113360.0,0.15392]
[1755849413185,0.17644464,113350.0,113340.0,0.06784]
[1755849413392,0.51548371,113350.0,113340.0,0.15472475]
[1755849413598,0.85254278,113350.0,113340.0,0.33688475]
[1755849413780,0.87907278,113350.0,113340.0,0.49080475]
[1755849413979,0.54201371,113350.0,113340.0,0.49080475]
[1755849414383,0.54459371,113350.0,113340.0,0.49380475]
[1755849415229,0.54459371,113350.0,113340.0,0.49580475]
[1755849415607,0.54201371,113350.0,113340.0,0.49580475]
[1755849416005,0.20495464,113350.0,113340.0,0.49580475]
[1755849416243,0.54201371,113350.0,113340.0,0.49080475]
[1755849417275,0.54201371,113350.0,113340.0,0.25]
[1755849417481,0.88165278,113350.0,113340.0,0.40384]
[1755849417658,0.54201371,113350.0,113340.0,0.40384]
[1755849418661,0.20495464,113350.0,113340.0,0.40384]
[1755849418869,0.54201371,113350.0,113340.0,0.40384]
[1755849419559,0.20495464,113350.0,113340.0,0.40896]
[1755849419711,0.54201371,113350.0,113340.0,0.40896]
[1755849419919,0.20495464,113350.0,113340.0,0.40896]
[1755849420133,0.54201371,113350.0,113340.0,0.40896]
[1755849420343,0.20495464,113350.0,113340.0,0.40896]
[1755849420753,0.54201371,113350.0,113340.0,0.40896]
[1755849421185,0.20495464,113350.0,113340.0,0.476526]
[1755849421391,0.54201371,113350.0,113340.0,0.40896]
[1755849421641,0.54201371,113350.0,113340.0,0.40384]
[1755849421854,0.54201371,113350.0,113340.0,0.40686]
[1755849422063,0.54201371,113350.0,113340.0,0.40896]
[1755849422278,0.20495464,113350.0,113340.0,0.40896]
[1755849422507,0.54201371,113350.0,113340.0,0.40896]
[1755849422955,0.20297464,113350.0,113340.0,0.55458609]
[1755849423165,0.54003371,113350.0,113340.0,0.55458609]
[1755849423410,0.54003371,113350.0,113340.0,0.49584475]
[1755849424461,0.54003371,113350.0,113340.0,0.76254475]
[1755849426869,0.20297464,113350.0,113340.0,0.76254475]
[1755849427070,0.54003371,113350.0,113340.0,0.76254475]
[1755849427475,0.20297464,113350.0,113340.0,0.76254475]
[1755849427673,0.54003371,113350.0,113340.0,0.76254475]
[1755849428701,0.54003371,113350.0,113340.0,0.76354475]
[1755849430306,0.54003371,113350.0,113340.0,0.76454475]
[1755849430972,0.20297464,113350.0,113340.0,0.76454475]
[1755849431163,0.54003371,113350.0,113340.0,0.76454475]
[1755849432990,0.20297464,113350.0,113340.0,0.76454475]
[1755849433211,0.54003371,113350.0,113340.0,0.76454475]
[1755849434469,0.54201371,113350.0,113340.0,0.76454475]
[1755849436269,0.54003371,113350.0,113340.0,0.76454475]
[1755849436653,0.20297464,113350.0,113340.0,0.76454475]
[1755849436855,0.54003371,113350.0,113340.0,0.76454475]
[1755849437080,0.54202371,113350.0,113340.0,0.75942475]
[1755849438202,0.87908278,113350.0,113340.0,0.75898475]
[1755849438810,0.54202371,113350.0,113340.0,0.75898475]
[1755849439652,0.01891698,113350.0,113340.0,0.75898475]
[1755849439878,0.5334208,113350.0,113340.0,0.75898475]
[1755849440060,0.53242069,113350.0,113340.0,0.75898475]
[1755849443220,0.53242069,113350.0,113340.0,0.6721]
[1755849443783,0.53242069,113350.0,113340.0,0.67194]
[1755849444110,0.87205976,113350.0,113340.0,0.67194]
[1755849444281,0.19536162,113350.0,113340.0,0.67194]
[1755849444482,0.86947976,113350.0,113340.0,0.67194]
[1755849445163,0.87205976,113350.0,113340.0,0.67194]
[1755849445470,1.21205976,113350.0,113340.0,0.40524]
[1755849445898,1.21205976,113350.0,113340.0,0.40424]
[1755849446214,1.21205976,113350.0,113340.0,0.40324]
[1755849446822,1.36525976,113350.0,113340.0,0.40324]
[1755849448240,1.36525976,113350.0,113340.0,0.15324]
[1755849448589,1.36625976,113350.0,113340.0,0.15324]
[1755849448992,0.17647577,113330.0,113320.0,0.33761]
[1755849449245,0.51353484,113330.0,113320.0,0.57980475]
[1755849449660,0.54006884,113330.0,113320.0,0.82980475]
[1755849450162,0.20300977,113330.0,113320.0,0.83085293]
[1755849450494,0.54006884,113330.0,113320.0,0.83185293]
[1755849450904,0.54006884,113330.0,113320.0,0.49731293]
[1755849451119,1.21912791,113330.0,113320.0,0.40520818]
[1755849452188,0.88206884,113330.0,113320.0,0.40520818]
[1755849452396,1.21912791,113330.0,113320.0,0.40520818]
[1755849459281,1.23294288,113330.0,113320.0,0.40520818]
[1755849459714,1.23294288,113330.0,113320.0,0.41042818]
[1755849460255,1.23294288,113330.0,113320.0,0.40827818]
[1755849460463,1.23294288,113330.0,113320.0,0.41042818]
[1755849461210,1.23294288,113330.0,113320.0,0.40827818]
[1755849462834,1.23294288,113330.0,113320.0,0.41042818]
[1755849465993,1.23294288,113330.0,113320.0,0.40520818]
[1755849466615,0.5917528,113330.0,113320.0,0.40520818]
[1755849466812,1.26587094,113330.0,113320.0,0.40520818]
[1755849467295,1.23294288,113330.0,113320.0,0.40520818]
[1755849467670,1.23550288,113330.0,113320.0,0.40520818]
[1755849467877,1.26843094,113330.0,113320.0,0.40520818]
[1755849468085,1.42111094,113330.0,113320.0,0.40520818]
[1755849468354,1.40729597,113330.0,113320.0,0.40520818]
[1755849468558,1.37436791,113330.0,113320.0,0.40520818]
[1755849468935,1.40729597,113330.0,113320.0,0.40520818]
[1755849469139,1.40729597,113330.0,113320.0,0.40420818]
[1755849469355,1.40729597,113330.0,113320.0,0.15420818]
[1755849469566,1.37436791,113330.0,113320.0,0.15320818]
[1755849470087,1.37536791,113330.0,113320.0,0.15320818]
[1755849470313,1.37536791,113330.0,113320.0,4.818e-05]
[1755849471599,1.38918369,113330.0,113320.0,4.818e-05]
[1755849471737,1.39018369,113330.0,113320.0,4.818e-05]
[1755849472715,0.71350555,113330.0,113320.0,4.818e-05]
[1755849473063,1.38762369,113330.0,113320.0,4.818e-05]
[1755849473264,1.39020369,113330.0,113320.0,4.818e-05]
[1755849473839,1.38762369,113330.0,113320.0,4.818e-05]
[1755849474209,1.46677405,113330.0,113320.0,4.818e-05]
[1755849474417,1.38762369,113330.0,113320.0,4.818e-05]
[1755849474840,1.38742369,113330.0,113320.0,4.818e-05]
[1755849475727,1.37360791,113330.0,113320.0,4.818e-05]
[1755849476835,0.69948977,113330.0,113320.0,4.818e-05]
[1755849477081,1.37360791,113330.0,113320.0,4.818e-05]
[1755849477301,1.45275827,113330.0,113320.0,4.818e-05]
[1755849477491,1.37360791,113330.0,113320.0,4.818e-05]
[1755849478910,0.54700977,113330.0,113320.0,4.818e-05]
[1755849479110,1.23494367,113330.0,113320.0,4.818e-05]
[1755849480147,1.23294367,113330.0,113320.0,0.00499818]
[1755849480555,1.23492367,113330.0,113320.0,0.00499818]
[1755849480950,1.23492367,113330.0,113320.0,4.818e-05]
[1755849481156,1.38990367,113330.0,113320.0,4.818e-05]
[1755849481398,1.38732367,113330.0,113320.0,4.818e-05]
[1755849482258,1.38732367,113330.0,113320.0,0.00298818]
[1755849482971,1.38732367,113330.0,113320.0,0.00499818]
[1755849483584,0.71320553,113330.0,113320.0,0.00499818]
[1755849483787,1.38732367,113330.0,113320.0,0.00499818]
[1755849485797,1.37350791,113330.0,113320.0,0.00499818]
[1755849487210,1.21912791,113330.0,113320.0,0.00499818]
[1755849488491,0.88206884,113330.0,113320.0,0.00499818]
[1755849488708,1.22108791,113330.0,113320.0,0.00499818]
[1755849489088,1.37388791,113330.0,113320.0,0.00499818]
[1755849489299,1.38770335,113330.0,113320.0,0.00499818]
[1755849490939,0.71358521,113330.0,113320.0,0.00499818]
[1755849491142,1.23490335,113330.0,113320.0,0.00499818]
[1755849491772,1.23294335,113330.0,113320.0,0.00499818]
[1755849492734,0.55882521,113330.0,113320.0,0.00499818]
[1755849492888,1.23294335,113330.0,113320.0,0.00499818]
[1755849494566,1.23298335,113330.0,113320.0,0.00499818]
[1755849495727,1.21916791,113330.0,113320.0,0.00499818]
[1755849498183,1.37188791,113330.0,113320.0,0.00499818]
[1755849499075,1.38570332,113330.0,113320.0,0.00499818]
[1755849501105,1.23294332,113330.0,113320.0,0.00499818]
[1755849502168,1.23492332,113330.0,113320.0,0.00206818]
[1755849502393,1.23492332,113330.0,113320.0,0.00530818]
[1755849503295,1.38744332,113330.0,113320.0,0.00530818]
[1755849505967,1.38546332,113330.0,113320.0,0.00530818]
[1755849506170,1.38745332,113330.0,113320.0,0.00530818]
[1755849506997,1.23294332,113330.0,113320.0,0.00530818]
[1755849509154,1.23493332,113330.0,113320.0,0.00530818]
[1755849513847,1.23493332,113330.0,113320.0,4.818e-05]